Cogmind - Beta 9.3 @@@ ROGUE MODE // 2019.12.20 @ 15:32:32 // Winter2019/RPGLIKE Player: Cassie Rose Result: Destroyed by Y-45 Defender with Heavy Assault Rifle Performance ------------- Evolutions (1) 500 Regions Visited (2) 400 Robots Destroyed (60) 300 Value Destroyed (1036) 1036 Prototype IDs (0) 0 Alien Tech Used (0) 0 Bonus (66) 66 TOTAL SCORE: 2302 Bonus ------- High Alert Combat Kills 66 Cogmind --------- Core Integrity 0/1300 Matter 300/300 Energy 260/265 System Corruption 0% Temperature Cool (0) Movement Flying (40) Location -9/Materials Parts ------- > --- POWER (1) -------- Improved Ion Engine > --- PROPULSION (2) --- Flight Unit > --- UTILITY (5) ------ Terrain Scan Processor Targeting Computer Armor Integrity Analyzer Light Armor Plating Hardened Light Armor Plating > --- WEAPON (1) ------- Heavy Hammer > --- INVENTORY (0) ---- (None) Peak State ------------ > --- POWER ------------ Improved Ion Engine > --- PROPULSION ------- Flight Unit VTOL Module > --- UTILITY ---------- Improved Terrain Scanner Terrain Scan Processor Targeting Computer Armor Integrity Analyzer Hardened Light Armor Plating > --- WEAPON ----------- Beam Rifle > --- INVENTORY -------- (None) [Rating: 16] Favorites ----------- Power Improved Ion Engine Engine Improved Ion Engine Power Core Light Nuclear Core Propulsion Flight Unit Wheel Compact Wheel Flight Unit Flight Unit Utility Targeting Computer Device Improved Terrain Scanner Processor Targeting Computer Protection Hardened Light Armor Plating Weapon EM Pulse Gun Energy Gun EM Pulse Gun Ballistic Gun Light Assault Rifle Impact Weapon Heavy Hammer Build | -11 -10 -9 ------- Run | Scr Mat Mat Slots Evolved 5 | 3 1 1 Power . | . . . Propulsion 1 | 1 . . Utility 4 | 2 1 1 Weapon . | . . . Parts Attached 30 | 6 8 16 Power 7 | 1 1 5 Engine 6 | 1 . 5 Core 1 | . 1 . Reactor . | . . . Propulsion 9 | 2 4 3 Treads . | . . . Leg . | . . . Wheel 2 | 2 . . Hover . | . . . Flight 7 | . 4 3 Utility 9 | 2 3 4 Device 2 | 1 . 1 Storage . | . . . Processor 4 | 1 1 2 Hackware . | . . . Protection 3 | . 2 1 Artifact . | . . . Weapon 5 | 1 . 4 Energy Gun 3 | 1 . 2 Energy Cannon . | . . . Ballistic Gun 1 | . . 1 Ballistic Cannon . | . . . Launcher . | . . . Special Weapon . | . . . Impact Weapon 1 | . . 1 Slashing Weapon . | . . . Piercing Weapon . | . . . Special Melee Weapon . | . . . Unidentified Prototypes . | . . . Parts Lost 3 | . . 3 Power . | . . . Propulsion 1 | . . 1 Utility 1 | . . 1 Weapon 1 | . . 1 Highest Loss Streak 2 | . . 2 Average Slot Usage (%) 98 | . 99 97 Engine 7 | . 2 9 Core 4 | . 10 1 Wheel 5 | . 14 . Flight 17 | . 12 20 Device 11 | . 13 9 Processor 29 | . 26 32 Protection 8 | . 4 11 Energy Gun 8 | . 13 4 Impact Weapon 3 | . . 5 Naked Turns . | . . . Heaviest Build 18 | 6 13 18 Greatest Support 31 | 31 31 29 Greatest Overweight (x) 1 | . . 1 Average Overweight (x) . | . . . Largest Inventory Capacity . | . . . Average Capacity . | . . . Most Carried . | . . . Average Carried . | . . . Final Capacity . | . . . Final Carried . | . . . Class Distribution -------------------- 74% | Scavenger-Mutant 25% | Mutant Dominant Class ---------------- Mutant | -10/Materials Scavenger-Mutant | -9/Materials Resources | -11 -10 -9 ----------- Run | Scr Mat Mat Matter Collected 500 | 260 80 160 Remotely . | . . . Salvage Created 1705 | 140 600 965 Parts 130 | 14 49 67 Haulers Intercepted 5 | . 2 3 Recyclers Shooed . | . . . Parts Field Recycled . | . . . Retrieved Matter . | . . . Parts Self-Destructed . | . . . Prevented . | . . . Kills | -11 -10 -9 ------- Run | Scr Mat Mat Combat Hostiles Destroyed 36 | . 12 24 Melee 11 | . . 11 Guns 18 | . 9 9 AOE 2 | . 2 . Classes Destroyed 11 | 2 6 3 Worker 1 | . . 1 Builder 2 | . 1 1 Tunneler 6 | 3 2 1 Hauler 5 | . 2 3 Recycler 2 | 1 . 1 Operator 3 | . 2 1 Watcher 5 | . 3 2 Swarmer 20 | . 6 14 Grunt 11 | . 6 5 Brawler 1 | . . 1 Sentry 4 | . . 4 Best Kill Streak 10 | 4 10 6 Combat Bots Only 7 | . 7 5 Max Kills in Single Turn 2 | 1 2 1 Gunslinging . | . . . Exploded 2 | . 2 . Melee 1 | . . 1 Uniques/NPCs Destroyed . | . . . Combat | -11 -10 -9 -------- Run | Scr Mat Mat Damage Taken 2696 | . 681 2015 Core 2220 | . 573 1647 Absorbed by Shields . | . . . Redirected to Core 1584 | . 342 1242 Core Remaining (%) 81 | 100 63 . Volleys Fired 165 | 11 81 73 Largest 1 | 1 1 1 Hottest 56 | 40 40 56 Shots Fired 165 | 11 81 73 Gun 165 | 11 81 73 Cannon . | . . . Launcher . | . . . Special . | . . . Kinetic 15 | . . 15 Thermal 35 | . . 35 Explosive . | . . . Electromagnetic 115 | 11 81 23 Robot Hit Streak 12 | 5 12 11 Robot Miss Streak 3 | 3 3 3 Penetration Max . | . . . Secondary Targets . | . . . Shots Hit Robots 179 | 8 56 115 Core Hits 67 | 4 28 35 Critical Hits . | . . . Critical Kills . | . . . Critical Parts Destroyed . | . . . Melee Attacks 72 | . . 72 Impact 72 | . . 72 Slashing . | . . . Piercing . | . . . Sneak Attacks 6 | . . 6 Combat Hostiles . | . . . Follow-up Attacks . | . . . Damage Inflicted 3697 | 141 975 2581 Guns 1665 | 110 865 690 Cannons . | . . . Explosions 232 | 31 110 91 Melee 1800 | . . 1800 Ramming . | . . . Kinetic 91 | . . 91 Thermal 595 | 31 110 454 Explosive . | . . . Electromagnetic 1211 | 110 865 236 Impact 1800 | . . 1800 Slashing . | . . . Piercing . | . . . Highest Corruption . | . . . Average Corruption . | . . . Corruption Purged . | . . . Overload Shots . | . . . Overflow Damage 260 | . . 260 Projectiles . | . . . Explosions . | . . . Melee 260 | . . 260 Knockbacks 6 | . . 6 Impact 6 | . . 6 Kinetic . | . . . Secondary . | . . . Self-Inflicted Damage 81 | . 40 41 Shots 2 | . 1 1 Rammed . | . . . Targets Rammed . | . . . Kicked . | . . . Crushed . | . . . Highest Temperature 388 | . 208 388 Average Temperature 98 | . 39 146 Received Heat Transfer 786 | . 246 540 Effects 8 | . . 8 Shutdowns 2 | . . 2 Energy Bleed 2 | . . 2 Interference 2 | . . 2 Matter Decay 1 | . . 1 Short Circuit 1 | . . 1 Siege Activations . | . . . Robots Corrupted 1 | . 1 . Combat Hostiles 1 | . 1 . Parts Fried 15 | . 6 9 Impact Corruptions 16 | . . 16 Robots Melted . | . . . Combat Hostiles . | . . . Parts Melted . | . . . Heat Transferred 1125 | . 150 975 Parts Sabotaged . | . . . Parts Stolen . | . . . Parts Stripped . | . . . Power Chain Reactions 6 | 1 3 2 Missiles Intercepted . | . . . Alert | -11 -10 -9 ------- Run | Scr Mat Mat Peak Influence 726 | 20 398 726 Average Influence 313 | 6 195 422 Maximum Alert Level 3 | . 1 3 Low Security (%) 28 | 100 47 8 Level 1 42 | . 52 39 Level 2 25 | . . 44 Level 3 3 | . . 6 Level 4 . | . . . Level 5 . | . . . High Security . | . . . Max Security . | . . . Squads Dispatched 4 | . 2 2 Investigation . | . . . Extermination . | . . . Reinforcement 4 | . 2 2 Assault . | . . . Garrison . | . . . Intercept . | . . . Construction Impeded . | . . . Haulers Reinforced . | . . . Stealth | -11 -10 -9 --------- Run | Scr Mat Mat Distress Signals 3 | . 2 1 Communications Jammed . | . . . Distress Signals . | . . . Times Spotted 61 | . 21 40 Peak Tracking Total 9 | . 5 9 Tactical Retreats 2 | . . 2 Traps | -11 -10 -9 ------- Run | Scr Mat Mat Traps Triggered . | . . . Indirectly . | . . . Trap Hack Attempts . | . . . Triggered . | . . . Disarmed . | . . . Reprogrammed . | . . . Reused . | . . . Traps Extracted . | . . . Installed . | . . . Triggered . | . . . Machines | -11 -10 -9 ---------- Run | Scr Mat Mat Machines Disabled 3 | . 2 1 Max in Single Turn 1 | . 1 1 Machines Sabotaged . | . . . Garrisons Compromised . | . . . Overloaded Fab Kills . | . . . Fab Network Shutdowns . | . . . Hacking | -11 -10 -9 --------- Run | Scr Mat Mat Machines Accessed 1 | . 1 . Terminals 1 | . 1 . Fabricators . | . . . Repair Stations . | . . . Recycling Units . | . . . Scanalyzers . | . . . Garrison Access . | . . . Total Hacks 1 | . 1 . Successful 1 | . 1 . Failed . | . . . Catastrophic . | . . . Database Lockouts . | . . . Manual . | . . . Terminals 1 | . 1 . Fabricators . | . . . Repair Stations . | . . . Recycling Units . | . . . Scanalyzers . | . . . Garrison Access . | . . . Terminal Hacks 1 | . 1 . Zone Layout 1 | . 1 . Fabricator Hacks . | . . . Repair Station Hacks . | . . . Recycling Unit Hacks . | . . . Scanalyzer . | . . . Garrison Access Hacks . | . . . Unauthorized Hacks . | . . . Terminals . | . . . Fabricators . | . . . Repair Stations . | . . . Recycling Units . | . . . Scanalyzers . | . . . Garrison Access . | . . . Data Cores Recovered 1 | . 1 . Used . | . . . Hacking Detections 1 | . 1 . Full Trace Events . | . . . Feedback Events . | . . . Feedback Blocked . | . . . Robot Schematics Acquired . | . . . Robots Built . | . . . Matter . | . . . Time . | . . . Total Robot Build Rating . | . . . Part Schematics Acquired . | . . . Parts Built . | . . . Matter . | . . . Time . | . . . Total Part Build Rating . | . . . Parts Repaired . | . . . Time . | . . . Parts Recycled . | . . . Recycled Matter . | . . . Retrieved Matter . | . . . Retrieved Components . | . . . Parts Scanalyzed . | . . . Part Schematics Acquired . | . . . Parts Damaged . | . . . Bothacking | -11 -10 -9 ------------ Run | Scr Mat Mat Used RIF Installer . | . . . Robots Hacked . | . . . Non-combat . | . . . Combat . | . . . Robot Hacks Applied . | . . . Relay Couplers Released . | . . . Robots Rewired . | . . . Allies Hacked . | . . . Hacks Repelled . | . . . Allies | -11 -10 -9 -------- Run | Scr Mat Mat Total Allies . | . . . Largest Group . | . . . Highest-Rated Group . | . . . Highest-Rated Ally . | . . . Total Orders . | . . . Ally Attacks . | . . . Total Damage . | . . . Kills . | . . . Allies Corrupted . | . . . Allies Melted . | . . . Intel | -11 -10 -9 ------- Run | Scr Mat Mat Robot Analysis Total . | . . . Derelict Logs Recovered . | . . . Drone Launches . | . . . Drone Recoveries . | . . . Exploration | -11 -10 -9 ------------- Run | Scr Mat Mat Turns Passed 1380 | 75 523 782 Spaces Moved 1279 | 50 608 621 Core 1 | 1 . . Treads . | . . . Legs . | . . . Wheels 216 | 49 167 . Hover . | . . . Flight 1062 | . 441 621 Fastest Speed 37 | 50 37 37 Average Speed 53 | 89 51 53 Slowest Speed 117 | 100 90 117 Overloaded Moves . | . . . Propulsion Burnouts . | . . . Robots Hopped 3 | . 1 2 Cave-ins Triggered . | . . . Exploration Rate (%) 56 | 4 97 67 Regions Visited 2 Branch Regions . Pre-discovered Areas . | . . . Known Exits Taken . | . . . Unknown Exits Taken 2 | 1 1 . Scrap Searched . | . . . Spaces Dug . | . . . Terrain Destroyed 47 | 1 35 11 Melee . | . . . Projectile . | . . . AOE 47 | 1 35 11 Actions | -11 -10 -9 --------- Run | Scr Mat Mat Total 1662 | 66 735 861 Wait 55 | . 16 39 Move 1271 | 49 605 617 Hop 3 | . 1 2 Pick Up . | . . . Fast Attach 19 | 6 5 8 Attach . | . . . Detach . | . . . Swap 11 | . 3 8 Drop 18 | . 6 12 Fire 165 | 11 81 73 Melee 72 | . . 72 Ram . | . . . Kick . | . . . Crush . | . . . Escape Stasis . | . . . Rewire . | . . . Trap . | . . . Miscellaneous 48 | . 18 30 Route ------- -11/Scrapyard -10/Materials (discovered 4 exits: [*Mat x3] / [*Min]) -9/Materials (discovered 2 exits: [*Mat x2]) History --------- Turn | Location | Event 1 | -11/Scrapyard | Upgraded with Propulsion slot (x1) 1 | -11/Scrapyard | Upgraded with Utility slot (x2) 10 | -11/Scrapyard | Discovered new exit (range 15) 76 | -11/Scrapyard | Entered Materials 280 | -10/Materials | Discovered new exit (range 10) 318 | -10/Materials | Build established: Mutant 366 | -10/Materials | Destroyed 7 combat bots 368 | -10/Materials | Core integrity fell below 50% 381 | -10/Materials | Reached level 2 414 | -10/Materials | Upgraded with Utility slot (x1) 504 | -10/Materials | Discovered new exit (range 4) 524 | -10/Materials | Discovered new exit (range 15) 575 | -10/Materials | Discovered new exit (range 16) 599 | -10/Materials | Entered another Materials area 601 | -9/Materials | Reached level 3 601 | -9/Materials | Upgraded with Utility slot (x1) 647 | -9/Materials | Build established: Scavenger-Mutant 648 | -9/Materials | Core integrity fell below 50% 711 | -9/Materials | Core integrity fell below 20% 807 | -9/Materials | Discovered new exit (range 4) 962 | -9/Materials | Reached level 4 1227 | -9/Materials | Reached level 5 1256 | -9/Materials | Discovered new exit (range 16) 1381 | -9/Materials | Destroyed by Y-45 Defender with Heavy Assault Rifle Last Messages --------------- 01314_ R-06 Scavenger collects Lgt. Armor Plating. 01315_ K-01 Serf collects debris. 01316_ Acquired Lgt. Armor Plating. 01317_ Acquired 20 matter. 01317_ R-06 Scavenger collects Beam Rifle. 01318_ Sneak attack on K-01 Serf. 01318_ Destroyed Wheel. 01318_ Destroyed Lgt. Ion Engine. 01318_ K-01 Serf system corrupted by crushing effect. 01319_ K-01 Serf system terminally corrupted. 01319_ Sml. Matter Pod fried. 01321_ Sneak attack on A-02 Transporter. 01321_ Destroyed Transport Network Coupler. 01321_ Destroyed Lgt. Treads. 01321_ A-02 Transporter system corrupted by crushing effect. 01322_ A-02 Transporter system terminally corrupted. 01323_ R-06 Scavenger collects Imp. Ion Engine. 01324_ K-01 Serf collects debris. 01367_ Destroyed Beam Rifle. 01367_ Y-45 Defender system corrupted by crushing effect. Map ----- +----------------------------------------------------+ | ?????????????????????????????????????????????????? | | ?????????????????????????????????????????????????? | | ?????????????????????????????????????????????????? | | ?????????????????????????????????????????????????? | | ?????????????????????????????????????????????????? | | ?????????????????????????????????????????????????? | | ?????????????????????????????????????????????????? | | ?????????????????????????####????????????????????? | | ????????????????????????? ????????????????????? | | ????????????????????????? ????????????????????? | | ????????????????????????# ????????????????????? | | ????????????????????????# #????????????????????? | | ???????????????????????## ##???????????????????? | | ???????????##??????????# #???????????????????? | | ??????????? ????????? #???????????????????? | | ???????????? ??????? +???????????????????? | | ?????????????? ??????? a #???????????????????? | | ?????????????###/######? #???????????????????? | | ?????????????# #?# g#????????????????????? | | ?????????????? """"" #?# #????????????????????? | | ?????????????? """"" ### ######???????????????? | | #???????????## """"" + ????????? | | ??????? ? ??# """"" ### ######???????????????? | | ????? ??? ???# """"" ####/####??????????????????? | | #?##??#?##?#?# """"" ## Y #??????????????????? | | ???###?#####?# """"" ## @""" ##?????????????????? | | ##???#??###### ## """ #?????????????????? | | ##?###??###?######+##### """ ##?????????????????? | | ######?###########[##?## Y ##?????????????????? | | ##################[##### """ #??????????????????? | | ####### ##%#?### """ #? ????????????????? | | ####### ##%#?#?# """ # ????????????????? | | ####### ##[##### #??????????????????? | | ####### """ """ #[%[#### #?##???????????????? | | ####### """ """ # = + ##?#???????????????? | | ####### """ """ # % #### "T" #?#? ?? ??????????? | | ####### ## ##### """ ###?? ?????????????? | | ####### % ## ############??# ??????????????? | | ###########+###### ##########????##??????????????? | | ###########? ?? ?????????????? | | + ? ??????????????? | | """ ##+######## ?"??"????????????? | | "Y" #### ######## [##? ""???????#???????? | | *#### ######## """ #?#??""?"?"??????????? | | % #### ########] """ ##??""???????????????? | | #### ######## """ #?# ??""?????????????? | | #### ######## ### ??? ? ??????????? | | = #### ########################????????????? | | #### # ## ##???#???????????? | | ### #### + "T" ## T ##?#?????????????? | +----------------------------------------------------+ Best States ------------- Heat Dissipation 49 Energy Generation 14 Energy Capacity 265 Matter Stores 300 Matter Capacity 300 Sight Range 16 Robot Scan Range 4 Terrain Scan Range 16 Terrain Scan Density 285 Armor Coverage 300 Evasion (%) 62 Targeting Accuracy 5 Armor Integrity Analysis 33 Item Schematics ----------------- None Robot Schematics ------------------ None Fabricated ------------ Nothing Alien Tech Used ----------------- None Achievements -------------- None Challenges ------------ None RPGLIKE | -11 -10 -9 --------- Run | Scr Mat Mat Levels Raised 4 | . 1 3 XP Earned 9507 | 3000 1775 4732 XP Spent 8925 | 2960 1500 4465 Upgrades 36 | 11 2 23 Propulsion Slot 1 | 1 . . Utility Slot 4 | 2 1 1 Core Integrity 14 | 2 . 12 Heat Dissipation 4 | . . 4 Mass Support 4 | 1 . 3 Sensor Range 2 | 1 . 1 Terrain Scan Density 2 | 1 . 1 Ranged Accuracy 1 | 1 . . Melee Accuracy 4 | 2 1 1 Protomatter Created 385 | . 134 251 Integrity Restored 952 | . 349 603 Core 918 | . 315 603 Parts 34 | . 34 . Protomatter Decayed 55 | . 5 50 Game ------ Seed ProcessingNetworkKatana Manual? 0 Play Time 00:26:23 Cumulative 73.0 hours Start 2019.12.20 @ 15:03:59 End 2019.12.20 @ 15:32:32 Sessions 1 Manual Loads 0 Difficulty Rogue Special Mode Winter2019/RPGLIKE Game No. 120 Rogue 120 Adventurer 0 Explorer 0 Win Type - Total 0 Types 0/0/0/0/0/0/0 Lore% 22 Gallery% 27 Achievement% 26 Wizard Run 0 Options --------- ASCII 0 Keyboard 0 Movement Mouse Keybinds 0 Fullscreen 1 Font 18/SmallcapsGlow Map View 76x50 Tactical HUD 1 Map Filters NONE Filters LOW_CONTRAST(13,24,33)|BRIGHTNESS(120)|SATURATION(80) Steam 1 RUN: ba304e77-8333-448a-92df-ea97b54eac54